bitfinex/quotes_ETHUSD_20220219
["timestamp","ask_amount","ask_price","bid_price","bid_amount"]
[1645252593023,2.4023,2815.8,2815.1,0.52]
[1645252593024,0.00221518,2815.5,2815.1,0.52]
[1645252593223,0.00221518,2815.5,2815.1,1.4081205]
[1645252593925,2.4023,2815.8,2815.1,1.4081205]
[1645252594327,0.00221521,2815.5,2815.1,1.4081205]
[1645252594625,0.00221521,2815.5,2815.2,3.5]
[1645252595369,0.00228131,2815.5,2815.2,3.5]
[1645252595768,0.00228131,2815.5,2815.1,0.52]
[1645252595964,0.00228131,2815.5,2815.2,3.5]
[1645252596166,0.00228131,2815.5,2815.1,0.52]
[1645252596371,2.4023,2815.8,2815.1,0.52]
[1645252596567,0.00228131,2815.5,2815.1,0.52]
[1645252597166,0.00228131,2815.5,2815.2,3.5]
[1645252597566,2.4023,2815.8,2815.2,3.5]
[1645252597769,0.00207151,2815.5,2815.2,3.5]
[1645252597971,0.00207151,2815.5,2815.1,0.52]
[1645252598830,2.4023,2815.8,2815.1,0.52]
[1645252599036,0.00198929,2815.5,2815.1,0.52]
[1645252599435,0.00198929,2815.5,2815.3,0.88805]
[1645252599635,0.00198929,2815.5,2815.4,0.52]
[1645252599834,0.00198929,2815.5,2815.4,4.62]
[1645252600035,0.142278,2816.2,2815.4,4.9374]
[1645252600232,0.0019893,2815.6,2815.5,0.1774]
[1645252600435,0.0019893,2815.6,2815.5,6.1066801]
[1645252600632,0.0019893,2815.6,2815.5,6.9730801]
[1645252600834,0.0019893,2815.6,2815.5,3.7730801]
[1645252601236,2.2694,2816.6,2815.8,0.88785]
[1645252601435,0.00795585,2816.1,2815.9,0.52]
[1645252602472,2.2694,2816.6,2816.4,1.11668655]
[1645252602673,0.00811767,2816.6,2816.4,1.11668655]
[1645252603473,3.5,2817.1,2816.4,1.11668655]
[1645252603874,0.00202953,2816.6,2816.4,1.11668655]
[1645252604775,3.5027406,2817.3,2816.4,1.11668655]
[1645252605174,0.00202953,2816.6,2816.4,1.11668655]
[1645252605976,3.5027406,2817.3,2816.4,1.11668655]
[1645252606219,0.00202222,2816.6,2816.4,1.11668655]
[1645252606419,0.00202222,2816.6,2816.4,2.00443755]
[1645252607219,0.0027406,2817.3,2816.4,2.00443755]
[1645252607419,0.00093208,2816.6,2816.4,2.00443755]
[1645252608419,0.0027406,2817.3,2816.4,2.00443755]
[1645252608620,0.00093208,2816.6,2816.4,2.00443755]
[1645252608821,0.00093208,2816.6,2816.5,0.3]
[1645252609620,3.5027406,2817.3,2816.6,1.77534]
[1645252609821,3.5027406,2817.3,2816.7,0.88767]
[1645252610079,0.00930541,2817.1,2816.7,2.00767]
[1645252610269,0.00930541,2817.1,2816.7,3.00767]
[1645252610480,0.0027406,2817.3,2817.1,0.00072944]
[1645252610675,0.0027406,2817.3,2817.2,0.52]
[1645252610881,0.0027406,2817.3,2817.2,1.42852367]
[1645252611077,3.5,2818.3,2817.3,8.0]
[1645252611276,3.6774,2818.9,2817.4,0.52]
[1645252611477,17.1079,2819.1,2817.4,0.52]
[1645252611478,14.85,2819.1,2817.5,5.27446]
[1645252611776,14.85,2819.1,2818.3,0.88712]
[1645252611979,14.45,2819.1,2818.9,0.92443073]
[1645252612371,14.45,2819.1,2818.7,0.52]
[1645252612573,3.5,2819.0,2818.1,3.119]
[1645252612773,3.5,2819.0,2818.0,0.25]
[1645252612973,0.88744,2818.8,2817.7,0.52]
[1645252613178,0.88744,2818.8,2817.4,0.52]
[1645252613179,3.5,2818.7,2817.4,0.52]
[1645252613378,3.5,2818.7,2817.9,0.8858422]
[1645252613579,0.0011133,2818.6,2817.9,0.8858422]
[1645252614025,0.8876084,2818.5,2817.9,0.8858422]
[1645252614225,0.1774,2818.4,2817.9,0.8858422]
[1645252614423,1.6,2818.9,2817.9,0.8858422]
[1645252614424,1.0,2818.9,2817.9,0.8858422]
[1645252614630,3.6774,2818.8,2817.9,0.8858422]
[1645252614822,0.00240311,2818.3,2817.9,0.8858422]
[1645252615625,0.88759,2818.5,2817.9,0.8858422]
[1645252615824,0.00240315,2818.2,2817.9,0.8858422]
[1645252616726,0.00240315,2818.2,2817.3,2.8108]
[1645252616927,4.38762,2818.3,2817.2,0.02109367]
[1645252617131,0.00240318,2818.2,2817.1,0.00072944]
[1645252617327,0.88767,2818.1,2817.1,0.00072944]
[1645252617577,0.8878202,2817.9,2817.1,0.00072944]
[1645252617778,0.8878202,2817.9,2817.3,1.03198498]
[1645252617976,0.4774,2818.1,2817.3,1.03198498]
[1645252618379,2.07554,2818.2,2817.3,1.03198498]
[1645252618880,3.07554,2818.2,2817.3,1.03198498]
[1645252619078,0.88769,2818.1,2817.3,1.03198498]
[1645252619280,1.18777,2818.0,2817.3,1.03198498]
[1645252619480,1.37314902,2818.0,2817.3,1.03198498]
[1645252619887,0.4774,2817.9,2817.3,1.03198498]
[1645252620381,1.3652,2817.9,2817.3,1.03198498]
[1645252620580,0.3,2817.8,2817.3,1.03198498]
[1645252621079,2.36516,2817.9,2817.1,0.00072944]
[1645252621080,1.48776,2817.9,2817.1,0.00072944]
[1645252621930,0.00241741,2817.6,2817.1,0.00072944]
[1645252622126,0.00241741,2817.6,2817.2,1.17235154]
[1645252622339,0.00241741,2817.6,2817.1,0.00072944]
[1645252622529,0.00241741,2817.6,2817.5,0.02188435]
[1645252622948,3.68845819,2818.1,2817.5,0.02188435]
[1645252622949,1.77519,2818.5,2817.5,0.02188435]
[1645252623135,3.2710308,2818.7,2817.5,0.02188435]
[1645252623136,0.00241739,2817.7,2817.5,0.02188435]
[1645252624131,1.77521,2818.5,2817.5,0.02188435]
[1645252624335,0.00111146,2817.7,2817.5,0.02188435]
[1645252625172,0.1774,2818.1,2817.5,0.02188435]
[1645252625475,1.0,2818.3,2817.5,0.02188435]
[1645252625476,0.00242031,2817.7,2817.5,0.02188435]
[1645252626480,1.77523,2818.5,2817.5,0.02188435]
[1645252626481,1.88759,2818.4,2817.5,0.02188435]
[1645252626679,0.00242031,2817.7,2817.5,0.02188435]
[1645252627483,0.00242031,2817.7,2817.1,0.00072944]
[1645252627675,0.88776,2817.9,2817.1,0.88484163]
[1645252627877,0.00242031,2817.7,2817.1,0.88484163]
[1645252628924,0.88765,2818.1,2817.1,0.88484163]
[1645252629226,1.9528,2818.2,2817.2,2.5]
[1645252629227,0.1774,2818.2,2817.2,2.5]
[1645252630030,4.52662,2818.3,2817.2,6.0]
[1645252630226,4.52662,2818.3,2817.2,2.5]
[1645252630429,2.92662,2818.3,2817.2,2.5]
[1645252630626,2.03904,2818.3,2817.2,2.5]
[1645252630828,0.1774,2818.2,2817.2,2.5]
[1645252631028,0.1774,2818.2,2817.3,3.5]
[1645252631235,1.0,2819.0,2817.3,3.5]
[1645252631236,0.1774,2818.6,2817.3,3.5]
[1645252631429,7.4002,2818.7,2817.4,1.52]
[1645252631629,7.4002,2818.7,2817.4,2.12]
[1645252632229,8.28772,2818.7,2817.4,2.12]
[1645252632489,0.8876,2818.3,2817.4,2.12]
[1645252632687,0.00110851,2818.2,2817.4,2.12]
[1645252633081,0.00110851,2818.2,2817.4,1.6]
[1645252633483,0.00110851,2818.2,2817.4,0.6]
[1645252633785,0.8876,2818.3,2817.3,5.1]
[1645252633982,0.0024202,2818.0,2817.4,0.00242072]
[1645252634991,1.77521,2818.3,2817.3,5.1]
[1645252635189,1.77521,2818.3,2817.4,0.00242068]
[1645252635190,0.00242016,2818.0,2817.4,0.00242068]
[1645252635987,0.00242016,2818.0,2817.3,1.6]
[1645252636239,1.77521,2818.3,2817.3,5.1]
[1645252636430,0.00242016,2818.0,2817.4,0.00242068]
[1645252637230,0.88765,2818.1,2817.1,1.06224163]
[1645252637431,0.88767,2818.1,2817.1,0.88484163]
[1645252637631,0.00242016,2818.0,2817.4,0.00242068]
[1645252638029,0.68702844,2818.0,2817.4,0.00242068]
[1645252638429,0.88765,2818.1,2817.1,1.48484163]
[1645252638629,0.88765,2818.1,2817.4,0.00242068]
[1645252638830,0.00242016,2818.0,2817.4,0.00242068]
[1645252639632,0.68462487,2818.2,2817.1,1.48484163]
[1645252640074,0.00242016,2818.0,2817.4,0.00242068]
[1645252640872,0.68462487,2818.2,2817.2,0.80111171]
[1645252641073,0.00242016,2818.0,2817.4,0.00242068]
[1645252641776,0.86444503,2818.0,2817.4,0.00242068]
[1645252641975,0.86444503,2818.0,2817.4,0.00019466]
[1645252641976,4.18462487,2817.9,2817.4,0.00019466]
[1645252642275,0.68462487,2817.8,2817.1,0.00072944]
[1645252642477,3.5,2817.7,2817.4,0.00242068]
[1645252643376,0.68725276,2817.6,2817.1,0.00072944]
[1645252644028,1.28725276,2817.6,2817.1,0.00072944]
[1645252644230,0.68725276,2817.5,2817.1,0.00072944]
[1645252645427,0.68725276,2817.5,2817.3,0.5]
[1645252645926,0.68725276,2817.5,2817.2,0.00242069]
[1645252646927,0.68725276,2817.5,2817.1,0.00072944]
[1645252647128,0.68725276,2817.5,2817.2,0.00242067]
[1645252647574,4.18725276,2817.5,2817.2,0.00242067]
[1645252647774,0.68725276,2817.4,2817.2,0.00242067]
[1645252647981,0.68725276,2817.3,2817.2,0.00242067]
[1645252648176,0.68725276,2817.5,2817.1,0.00072944]
[1645252648380,0.68725276,2817.5,2817.2,0.00242069]
[1645252648775,4.18725276,2817.5,2817.2,0.00242069]
[1645252648975,0.68725276,2817.4,2817.2,0.00242069]
[1645252649381,0.68725276,2817.5,2817.1,0.00072944]
[1645252649576,0.68725276,2817.4,2817.2,0.00242069]
[1645252649776,0.68725276,2817.3,2817.2,0.00242069]
[1645252650585,0.68725276,2817.3,2817.1,0.00072944]
[1645252650586,0.69276029,2817.5,2817.1,0.00072944]
[1645252650778,0.00550753,2817.2,2817.1,0.00315016]
[1645252650982,0.68725276,2817.2,2817.1,0.00315016]
[1645252651232,0.00550753,2817.4,2817.1,0.00315016]
[1645252651432,0.68725276,2817.3,2817.1,0.00315016]
[1645252651628,0.00550753,2817.4,2817.1,0.00315016]
[1645252651629,0.68725276,2817.2,2817.1,0.00315016]
[1645252651828,0.68725276,2817.2,2817.1,0.00072944]
[1645252652031,0.68725276,2817.5,2817.1,0.00315016]
[1645252652231,5.5314,2817.6,2817.1,0.00315016]
[1645252652232,0.68725276,2817.4,2817.1,0.00315016]
[1645252652430,0.68725276,2817.3,2817.1,0.00315016]
[1645252652630,0.00550753,2817.4,2817.1,0.00315016]
[1645252652631,0.68725276,2817.2,2817.1,0.00315016]
[1645252652830,0.00550753,2817.4,2817.1,0.00072944]
[1645252653032,0.68725276,2817.3,2817.1,0.00072944]
[1645252653336,0.68725276,2817.3,2817.1,5.018e-05]
[1645252653337,0.69276029,2817.2,2817.1,5.018e-05]
[1645252653737,1.17016029,2817.2,2817.1,5.018e-05]
[1645252653934,2.17016029,2817.2,2817.1,5.018e-05]
[1645252654136,2.17016029,2817.2,2816.5,0.80288416]
[1645252654332,0.68725276,2817.1,2816.6,0.80288416]
[1645252654532,0.68725276,2817.1,2816.1,3.5]
[1645252654533,0.00550753,2817.0,2816.7,0.80288416]
[1645252654732,0.88812,2816.8,2816.2,0.80288416]
[1645252654980,1.57536276,2816.7,2816.3,0.80525213]
[1645252655180,1.57536276,2816.7,2816.4,0.80525213]
[1645252655181,0.68725276,2816.6,2816.4,0.80525213]
[1645252655379,0.68725276,2816.6,2816.5,0.80525213]
[1645252656085,0.68725276,2816.6,2816.0,0.80525213]
[1645252656282,1.57543276,2816.6,2816.1,0.80525213]
[1645252656478,1.57542276,2816.5,2816.2,0.80525213]
[1645252656679,1.7763,2816.5,2816.2,0.80525213]
[1645252657078,1.7763,2816.5,2815.9,0.67419703]
[1645252657079,1.7763,2816.5,2816.3,0.80525213]
[1645252657280,1.7763,2816.5,2816.4,0.80525213]
[1645252657478,1.7763,2816.5,2815.9,0.80525213]
[1645252658081,1.7763,2816.5,2816.3,0.00242109]
[1645252658935,1.7763,2816.5,2815.9,0.80525213]
[1645252659130,1.7763,2816.5,2816.3,0.00242111]
[1645252660134,1.7763,2816.5,2815.9,0.80525213]
[1645252660332,1.7763,2816.5,2816.3,0.00242111]
[1645252661337,0.88819,2816.3,2815.9,0.80525213]
[1645252662032,3.72103916,2816.6,2815.9,0.80525213]
[1645252662241,1.94464916,2816.6,2815.9,0.80525213]
[1645252662477,0.16830916,2816.6,2815.9,0.80525213]
[1645252662880,0.16830916,2816.6,2816.1,0.00242118]
[1645252663276,0.88813,2816.5,2816.1,0.00242118]
[1645252663477,1.1844,2816.7,2816.1,0.00242118]
[1645252663677,0.88812,2816.5,2815.9,0.80525213]
[1645252664077,0.88812,2816.5,2816.2,0.00242116]
[1645252664879,0.88812,2816.5,2815.9,0.80525213]
[1645252665282,0.88812,2816.5,2816.2,0.00242114]
[1645252666080,0.88812,2816.5,2815.9,0.80525213]
[1645252666326,1.77629,2816.5,2816.2,0.00242114]
[1645252667334,1.77629,2816.5,2815.9,0.80525213]
[1645252667533,0.88818,2816.3,2816.2,0.00242114]
[1645252668533,0.88818,2816.3,2815.6,0.67419703]
[1645252668534,0.88818,2816.3,2816.1,0.80525213]
[1645252668732,0.88818,2816.3,2816.1,0.00242118]
[1645252669734,0.88818,2816.3,2815.7,0.77826141]
[1645252669989,0.88818,2816.3,2816.1,0.00242121]
[1645252670984,0.88818,2816.3,2815.9,0.77826141]
[1645252671183,0.88818,2816.3,2816.1,0.00242121]
[1645252671584,0.88812,2816.5,2816.1,0.00242121]
[1645252672085,0.88812,2816.5,2815.9,0.77826141]
[1645252672284,0.88812,2816.5,2816.2,0.00242116]
[1645252672885,0.88812,2816.5,2816.2,0.78068257]
[1645252673092,0.88812,2816.5,2816.3,0.77826141]
[1645252673292,1.77626,2816.5,2816.4,0.77826141]
[1645252673926,1.77626,2816.5,2816.2,0.00242114]
[1645252674527,1.77626,2816.5,2816.2,0.77780731]
[1645252674726,1.77626,2816.5,2816.3,0.77780731]
[1645252674926,1.77626,2816.5,2816.4,0.77780731]
[1645252675128,0.88812,2816.5,2816.4,0.77780731]
[1645252675328,0.88805,2816.7,2816.4,0.77780731]
[1645252675527,0.88805,2816.7,2816.5,0.77780731]
[1645252675728,0.88805,2816.7,2816.6,0.77780731]
[1645252675928,2.3223,2816.9,2816.6,0.77780731]
[1645252676127,0.71507419,2816.8,2816.4,0.00242104]
[1645252676328,1.2158,2816.9,2816.4,0.00242104]
[1645252676527,0.71507553,2816.8,2816.4,0.00242104]
[1645252676934,0.71507553,2816.8,2816.1,0.77766644]
[1645252677132,0.71507553,2816.8,2816.5,0.00242102]
[1645252678182,0.71507553,2816.8,2816.1,0.77766644]
[1645252678382,0.71507553,2816.8,2816.5,0.002421]
[1645252679384,0.88807,2816.7,2816.2,0.77766644]
[1645252679589,0.88807,2816.7,2816.5,0.002421]
[1645252679984,0.88807,2816.7,2816.5,0.78008744]
[1645252680183,0.88807,2816.7,2816.6,0.77766644]
[1645252680383,1.60386808,2816.7,2816.5,0.002421]
[1645252680586,0.88807,2816.7,2816.1,0.77766644]
[1645252680788,0.88807,2816.7,2816.5,0.002421]
[1645252681827,0.88807,2816.7,2816.1,0.77766644]
[1645252682029,0.888,2816.9,2816.7,0.04004852]
[1645252682231,0.73235575,2816.8,2816.7,0.04004852]
[1645252682428,0.73235575,2816.8,2816.7,0.80266689]
[1645252684633,0.73235575,2816.8,2816.7,0.04004852]
[1645252685279,0.73235575,2816.8,2816.7,0.80336306]
[1645252689839,0.73235575,2817.0,2816.7,0.80336306]
[1645252690041,2.3961,2817.2,2816.8,0.76331454]
[1645252690042,0.73235575,2816.9,2816.8,0.76331454]
[1645252690436,0.73235575,2817.1,2816.8,0.76331454]
[1645252690635,0.73235575,2817.0,2816.8,0.76331454]
[1645252690935,0.73235575,2816.9,2816.8,0.76331454]
[1645252691335,0.73235575,2817.1,2816.8,0.76331454]
[1645252691536,0.73235575,2817.0,2816.8,0.76331454]
[1645252691738,0.73235575,2817.1,2816.8,0.76331454]
[1645252691937,0.73235575,2817.0,2816.8,0.76331454]
[1645252692238,0.73235575,2816.9,2816.8,0.76331454]
[1645252692485,0.68235575,2817.4,2816.8,0.76331454]
[1645252692691,1.30550753,2817.5,2816.8,0.76331454]
[1645252693285,2.19333753,2817.5,2816.8,0.76331454]
[1645252693486,2.18783,2817.5,2816.8,0.76331454]
[1645252694087,5.68783,2817.5,2817.0,0.00242081]
[1645252694891,7.25403464,2817.5,2816.8,0.76331454]
[1645252695089,6.36620464,2817.5,2816.8,0.76331454]
[1645252695293,0.8879,2817.3,2817.0,0.00242085]
[1645252695690,4.3879,2817.3,2817.0,0.00242085]
[1645252696090,4.3879,2817.3,2816.8,0.76331454]
[1645252696330,0.8879,2817.3,2817.0,0.00242081]
[1645252697332,0.8879,2817.3,2816.8,0.76331454]
[1645252697530,0.8879,2817.3,2817.0,0.00242081]
[1645252697939,0.8879,2817.4,2817.0,0.00242081]
[1645252698532,0.8879,2817.4,2816.8,0.76331454]
[1645252698933,0.8879,2817.4,2817.0,0.00242083]
[1645252699333,2.18782,2817.5,2817.0,0.00242083]
[1645252699732,2.18782,2817.5,2816.8,0.76331454]
[1645252699977,2.18782,2817.5,2817.0,0.00242085]
[1645252700982,2.18782,2817.5,2816.8,0.76331454]
[1645252701192,2.18782,2817.5,2817.0,0.00242085]
[1645252701383,2.13782,2817.5,2817.0,0.00242085]
[1645252702183,2.13782,2817.5,2816.8,0.76331454]
[1645252702382,2.13782,2817.5,2817.0,0.00242085]
[1645252703291,2.13782,2817.5,2816.8,0.76331454]
[1645252703735,2.13782,2817.5,2817.0,0.00242085]
[1645252704636,2.13782,2817.5,2816.8,0.76331454]
[1645252704836,3.15994778,2817.5,2817.0,0.00242085]
[1645252705435,2.13782,2817.5,2817.0,0.00242085]
[1645252705839,2.13782,2817.5,2816.8,0.76331454]
[1645252706038,2.13782,2817.5,2817.0,0.00242085]
[1645252706237,3.5,2817.4,2817.0,0.00242085]
[1645252706445,0.88788,2817.3,2817.0,0.00242085]
[1645252707040,0.88788,2817.3,2816.8,0.76331454]
[1645252707237,0.88788,2817.3,2817.0,0.00242081]
[1645252708184,0.88788,2817.3,2816.8,0.76331454]
[1645252708388,0.88788,2817.3,2817.0,0.00242081]
[1645252708888,0.88788,2817.4,2817.0,0.00242081]
[1645252709085,0.83788,2817.4,2817.0,0.00242081]
[1645252709286,0.83788,2817.4,2816.8,0.76331454]
[1645252709688,0.83788,2817.4,2817.0,0.00242083]
[1645252709889,4.74623464,2817.6,2817.0,0.00242083]
[1645252710096,1.1999,2817.6,2817.0,0.00242083]
[1645252710289,2.1999,2817.6,2817.0,0.00242083]
[1645252710690,2.1999,2817.6,2816.7,0.04004852]
[1645252710898,2.1999,2817.6,2817.0,0.00242087]
[1645252711737,2.1999,2817.6,2816.7,0.04004852]
[1645252711937,2.1999,2817.6,2817.0,0.00242087]
[1645252712538,0.72937399,2817.5,2817.0,0.00242087]
[1645252712939,0.72937399,2817.5,2816.8,0.76789807]
[1645252713239,0.72937399,2817.5,2817.0,0.00242085]
[1645252715388,0.72937399,2817.5,2816.8,0.76789807]
[1645252715586,4.65856112,2818.1,2817.1,8.0]
[1645252715790,25.83,2819.1,2817.3,0.01202458]
[1645252715994,0.90125484,2818.8,2817.9,0.01250215]
[1645252716189,1.49403326,2819.0,2818.0,0.83559997]
[1645252716387,1.35188226,2819.0,2818.1,14.997]
[1645252716688,14.95,2819.1,2819.0,1.19490108]
[1645252716689,9.69290188,2819.1,2819.0,1.19490108]
[1645252716886,8.08627457,2819.1,2819.0,0.52]
[1645252717087,8.08627457,2819.1,2818.9,0.8869886]
[1645252717285,8.08627457,2819.1,2818.8,1.0]
[1645252717484,8.08627457,2819.1,2818.7,3.5512]
[1645252717987,8.08627457,2819.1,2818.7,1.1773]
[1645252718192,8.08627457,2819.1,2818.4,1.0]
[1645252718391,8.08627457,2819.1,2818.2,1.88729]
[1645252718596,8.08627457,2819.1,2818.2,1.0]
[1645252718847,8.08627457,2819.1,2818.1,0.3]
[1645252719049,3.5,2819.0,2817.9,0.1773]
[1645252719248,3.5,2819.0,2817.9,1.61164542]
[1645252719249,0.00111581,2818.8,2817.9,1.61164542]
[1645252719446,0.88757,2818.6,2817.9,1.61164542]
[1645252720246,0.88757,2818.6,2818.2,1.16124931]
[1645252720446,3.5,2818.8,2818.2,1.16124931]
[1645252720447,0.00243475,2818.4,2818.2,1.16124931]
[1645252721448,4.38751,2818.8,2818.2,1.16124931]
[1645252721649,0.00243473,2818.4,2818.2,1.16124931]
[1645252722690,3.5,2818.8,2818.2,1.16124931]
[1645252722889,0.00109677,2818.4,2818.2,1.16124931]
[1645252723691,1.0649,2819.0,2818.2,1.16124931]
[1645252723692,4.5649,2819.0,2818.2,1.16124931]
[1645252723900,4.707036,2819.0,2818.2,1.16124931]
[1645252724190,0.00243768,2818.4,2818.2,1.16124931]
[1645252724990,4.5649,2819.0,2818.2,1.16124931]
[1645252725191,0.00243768,2818.4,2818.2,1.16124931]
[1645252726243,1.0649,2819.0,2818.2,1.16124931]
[1645252726449,0.00243768,2818.4,2818.2,1.16124931]
[1645252727445,14.40696999,2819.1,2818.8,1.17185666]
[1645252727748,14.40696999,2819.1,2818.8,1.77185666]
[1645252727749,0.00974898,2818.9,2818.8,1.77185666]
[1645252727948,0.00974898,2818.9,2818.8,2.65891666]
[1645252728344,0.00974898,2818.9,2818.8,3.65891666]
[1645252728546,8.08627457,2819.1,2818.8,3.65891666]
[1645252728745,8.08627457,2819.1,2818.9,1.773865]
[1645252728945,8.08627457,2819.1,2819.0,1.77387]
[1645252729345,8.08627457,2819.1,2818.9,2.773865]
[1645252729547,8.08627457,2819.1,2818.9,3.660805]
[1645252729745,8.08627457,2819.1,2818.9,3.960805]
[1645252730008,8.08627457,2819.1,2818.9,3.660805]
[1645252730009,8.08871192,2819.1,2818.9,3.660805]
[1645252730694,7.66340121,2819.1,2818.9,4.547845]
[1645252731091,7.66096386,2819.1,2818.9,4.847845]
[1645252731292,7.66340121,2819.1,2818.9,4.847845]
[1645252732190,2.64505513,2819.1,2818.9,4.847845]
[1645252732393,2.64505513,2819.1,2819.0,0.52]
[1645252732593,0.4531746,2819.6,2819.0,0.52]
[1645252732594,0.4531746,2819.6,2819.1,8.0]
[1645252732795,0.4531746,2819.6,2819.3,1.77328]
[1645252732999,0.32847748,2819.6,2819.4,0.52]
[1645252733298,9.7343,2820.8,2819.5,8.0]
[1645252733492,9.7343,2820.8,2820.3,1.83144518]
[1645252734069,9.7343,2820.8,2820.4,0.88659]
[1645252734467,7.49,2820.8,2820.4,1.88659]
[1645252734667,0.00770158,2821.1,2820.4,1.88659]
[1645252734668,0.00770158,2821.1,2820.4,0.88659]
[1645252734868,0.00770158,2821.1,2820.4,1.0]
[1645252734869,0.00109677,2820.7,2820.4,1.0]
[1645252735074,0.00109677,2820.7,2820.2,3.5931198]
[1645252735673,0.00109677,2820.7,2820.3,4.38190435]
[1645252735882,0.00770158,2821.1,2820.4,1.52]
[1645252736071,0.00770158,2821.1,2820.6,7.38333]
[1645252736271,5.699e-05,2821.0,2820.7,9.02]
[1645252736467,5.699e-05,2821.0,2820.9,5.0]
[1645252736670,5.699e-05,2821.0,2820.9,4.63896431]
[1645252736875,0.03361282,2822.1,2821.2,0.00343054]
[1645252737071,0.06540316,2821.9,2821.3,0.52]
[1645252737273,0.06540316,2821.9,2821.2,0.88970054]
[1645252737274,0.41327137,2821.8,2821.2,1.77598884]
[1645252737505,0.41327137,2821.8,2821.2,0.00343054]
[1645252738091,0.88219308,2821.7,2821.2,0.00343054]
[1645252738290,0.41327137,2821.6,2821.2,0.00343054]
[1645252738493,0.1771,2821.5,2821.2,0.00343054]
[1645252738693,10.88,2821.3,2821.2,0.00343054]
[1645252738890,11.29278859,2821.3,2821.2,0.00343054]
[1645252739091,13.06668662,2821.3,2821.2,3.054e-05]
[1645252739293,14.84042662,2821.3,2821.2,3.054e-05]
[1645252739497,14.84042662,2821.3,2820.0,13.69132607]
[1645252739498,10.8808,2821.1,2820.0,13.69132607]
[1645252739692,10.8808,2821.1,2819.5,0.25]
[1645252739693,10.88,2820.8,2819.5,0.25]
[1645252739891,0.1771,2820.7,2819.5,0.25]
[1645252740091,12.0571,2820.7,2819.5,0.25]
[1645252740288,12.6571,2820.7,2819.5,0.25]
[1645252740490,12.6571,2820.7,2819.4,3.52005043]
[1645252740491,1.08549094,2819.8,2819.4,3.5]
[1645252740694,1.08549094,2819.8,2818.7,2.9165]
[1645252740695,1.08549094,2819.8,2818.8,3.5]
[1645252741091,1.08549094,2819.8,2818.6,4.38709]
[1645252741344,1.08549094,2819.8,2818.8,1.7741094]
[1645252741544,1.08549094,2819.8,2818.9,5.44256944]
[1645252741747,2.2619,2820.4,2819.0,2.05549114]
[1645252741943,2.2619,2820.4,2819.1,3.5]
[1645252742148,2.2619,2820.4,2819.2,1.0566949]
[1645252742343,2.2619,2820.4,2819.3,3.5]
[1645252742543,2.2619,2820.4,2819.3,3.8]
[1645252742744,2.2619,2820.4,2819.6,0.96480079]
[1645252743048,2.2619,2820.4,2819.6,2.08480079]
[1645252743243,2.2619,2820.4,2819.6,2.97155079]
[1645252743444,2.2619,2820.4,2819.9,0.00244284]
[1645252743843,3.14281039,2820.4,2819.9,0.00244284]
[1645252744245,3.14281039,2820.4,2819.8,1.0]
[1645252744746,3.14281039,2820.4,2820.0,0.00244278]
[1645252744747,2.2619,2820.4,2820.0,0.00244278]
[1645252745587,2.2619,2820.4,2819.7,2.7734714]
[1645252745789,1.05933498,2820.2,2820.0,0.00244279]
[1645252746789,1.05933498,2820.2,2819.6,2.12]
[1645252746988,1.05933498,2820.2,2819.7,0.8868385]
[1645252747189,2.2619,2820.4,2819.7,4.3868385]
[1645252747400,3.0478,2821.0,2819.7,5.6868385]
[1645252747591,3.0478,2821.0,2819.8,0.82]
[1645252747789,3.0478,2821.0,2820.0,0.3]
[1645252747992,3.0478,2821.0,2820.0,0.6]
[1645252748194,3.0478,2821.0,2820.0,1.6]
[1645252748495,0.98086331,2820.7,2820.0,1.6]
[1645252748945,0.98086331,2820.7,2820.0,0.3]
[1645252749142,0.98086331,2820.7,2820.0,1.3]
[1645252749339,0.98086331,2820.7,2820.0,0.30244581]
[1645252749540,0.98086331,2820.7,2820.1,0.8865757]
[1645252749741,3.0478,2821.0,2820.1,0.8865757]
[1645252749742,3.0478,2821.0,2820.1,2.0731857]
[1645252749945,5.68208697,2821.0,2820.1,1.18661]
[1645252750142,5.68208697,2821.0,2820.2,0.52]
[1645252750344,5.68208697,2821.0,2820.4,0.88654]
[1645252750650,5.68208697,2821.0,2820.5,3.5]
[1645252750842,5.68208697,2821.0,2820.6,1.0]
[1645252751045,0.01864806,2821.1,2820.6,4.5]
[1645252751244,0.01864806,2821.1,2820.6,4.8]
[1645252751442,0.01620316,2821.1,2820.6,4.8]
[1645252751851,0.01864817,2821.1,2820.7,0.8864402]
[1645252752243,0.01864817,2821.1,2820.7,1.1864402]
[1645252752508,0.01864817,2821.1,2820.7,0.8864402]
[1645252752693,0.01620316,2821.1,2820.7,0.8864402]
[1645252752897,0.01620316,2821.1,2820.6,1.7728803]
[1645252753100,0.01620316,2821.1,2820.8,0.52]
[1645252753101,0.01864819,2821.1,2820.8,0.52]
[1645252753396,0.01864819,2821.1,2820.9,1.46324446]
[1645252753596,0.01864819,2821.1,2821.0,0.52]
[1645252754000,0.01620316,2821.1,2821.0,0.82]
[1645252754198,0.01620316,2821.1,2821.0,0.52]
[1645252754598,0.01620316,2821.1,2821.0,1.52]
[1645252755499,0.01620316,2821.1,2821.0,0.52]
[1645252755698,0.01620316,2821.1,2821.0,1.0]
[1645252755897,0.01620316,2821.1,2820.9,3.5453937]
[1645252756101,0.01620316,2821.1,2820.9,2.6589837]
[1645252756549,0.01729243,2821.1,2820.9,2.6589837]
[1645252757555,0.01620316,2821.1,2820.9,2.6589837]
[1645252757750,0.01866007,2821.1,2820.9,2.6589837]
[1645252757953,0.01866007,2821.1,2820.9,3.5453737]
[1645252758753,0.01866007,2821.1,2820.9,2.6589837]
[1645252758754,0.01620316,2821.1,2820.9,2.6589837]
[1645252758952,0.01866007,2821.1,2820.9,2.6589837]
[1645252759557,0.01866007,2821.1,2820.9,1.7726558]
[1645252759757,0.01866007,2821.1,2820.4,5.967]
[1645252760001,0.01620316,2821.1,2819.9,0.52]
[1645252760199,0.01620316,2821.1,2820.0,4.57570577]
[1645252760395,0.01866007,2821.1,2820.0,3.50245791]
[1645252760795,0.96297393,2820.3,2820.0,0.00245791]
[1645252761199,0.96297393,2820.3,2819.2,3.5]
[1645252761396,0.96297393,2820.3,2819.3,1.08204183]
[1645252761596,0.96297393,2820.3,2820.0,0.00245758]
[1645252761999,0.88707,2820.2,2820.0,0.00245758]
[1645252762197,0.96297393,2820.3,2820.0,0.00245758]
[1645252762396,0.96297393,2820.3,2819.5,3.5]